bitfinex/quotes_ETHUSD_20230116
["timestamp","ask_amount","ask_price","bid_price","bid_amount"]
[1673857056928,6.48061,1543.1,1542.2,15.27895201]
[1673857057138,6.48061,1543.1,1542.3,7.80068198]
[1673857057494,12.95888,1543.4,1542.4,16.88578596]
[1673857057655,6.47878,1543.5,1542.7,6.4818]
[1673857057860,9.75156678,1543.5,1542.8,9.4817]
[1673857058229,9.75156678,1543.5,1542.8,10.12803918]
[1673857058441,3.27278678,1543.4,1542.9,1.6591431]
[1673857058749,3.27278678,1543.4,1542.8,9.4817]
[1673857058750,9.75227678,1543.4,1542.8,3.0]
[1673857058960,6.4786,1543.6,1542.9,3.27278678]
[1673857059125,6.47824,1543.7,1543.0,12.75352678]
[1673857059337,9.75102678,1543.7,1543.0,3.0]
[1673857059539,3.27278678,1543.6,1542.9,7.12746918]
[1673857059749,6.47878,1543.5,1543.0,0.71274692]
[1673857060234,12.95756,1543.5,1543.0,0.71274692]
[1673857060413,3.27278678,1543.4,1542.8,3.0]
[1673857060631,3.27278678,1543.3,1542.8,3.0]
[1673857060803,3.27278678,1543.2,1542.7,0.259329]
[1673857061015,3.27278678,1543.2,1542.7,0.90566818]
[1673857061277,9.75289678,1543.2,1542.7,0.996235]
[1673857061481,2.5,1543.0,1542.7,0.259329]
[1673857061799,6.48011,1543.2,1542.7,0.259329]
[1673857061972,16.23326678,1543.2,1542.7,0.90566818]
[1673857062185,6.48053,1543.1,1542.7,0.90566818]
[1673857062392,9.75289678,1543.2,1542.7,0.90566818]
[1673857062608,9.75842438,1543.2,1542.7,0.90566818]
[1673857062858,0.0055276,1543.2,1542.7,13.86980818]
[1673857063048,0.0055276,1543.2,1542.8,0.64633918]
[1673857063215,0.0055276,1543.2,1542.9,16.23520678]
[1673857063426,0.0055276,1543.2,1543.0,2.5]
[1673857063640,0.0055276,1543.2,1543.1,6.48046]
[1673857063847,0.0055276,1543.2,1543.0,3.64633918]
[1673857064164,0.0055276,1543.2,1543.0,0.64633918]
[1673857064621,0.0055276,1543.2,1543.0,1.6591021]
[1673857064862,0.0055276,1543.2,1543.0,0.64633918]
[1673857065156,0.0055276,1543.2,1542.7,3.259329]
[1673857065320,0.0055276,1543.2,1542.8,3.0]
[1673857065529,6.4855876,1543.2,1542.7,3.259329]
[1673857065739,6.4855876,1543.2,1542.7,3.90566818]
[1673857065944,16.23841438,1543.2,1542.7,3.259329]
[1673857066269,3.27278678,1543.1,1542.7,0.259329]
[1673857066495,20.59715908,1543.0,1542.7,0.259329]
[1673857066807,3.27278678,1542.9,1542.7,0.259329]
[1673857067028,6.48084,1543.1,1542.7,0.259329]
[1673857067682,0.0055276,1543.2,1542.7,6.741429]
[1673857067858,0.0055276,1543.2,1542.8,0.6741429]
[1673857068263,0.0055276,1543.2,1542.8,1.32048208]
[1673857068478,0.0055276,1543.2,1542.9,2.5]
[1673857068698,0.0055276,1543.2,1542.8,4.32048208]
[1673857068906,9.75843438,1543.2,1542.7,3.259329]
[1673857069135,16.23855438,1543.2,1542.6,3.0]
[1673857069352,0.0055276,1543.2,1542.7,3.27278678]
[1673857069540,0.0055276,1543.2,1542.8,6.80878868]
[1673857069767,0.0055276,1543.2,1542.6,3.0]
[1673857069979,16.23856438,1543.2,1542.6,3.0]
[1673857070189,3.27278678,1543.1,1542.5,3.0]
[1673857070525,22.71614678,1543.0,1542.4,3.0]
[1673857070739,22.71614678,1543.0,1542.2,0.15432283]
[1673857070740,3.27278678,1542.9,1542.2,0.15432283]
[1673857071053,22.71932678,1542.7,1542.2,0.15432283]
[1673857071378,3.27278678,1542.6,1542.2,0.15432283]
[1673857071565,6.48182,1542.8,1542.2,0.15432283]
[1673857071907,3.27278678,1542.7,1542.2,0.80066201]
[1673857072054,3.27278678,1542.6,1542.2,0.15432283]
[1673857072509,16.23812678,1542.6,1542.2,0.15432283]
[1673857072724,3.27278678,1542.5,1542.2,0.15432283]
[1673857073049,9.75580678,1542.5,1542.2,0.15432283]
[1673857073838,12.9655,1542.6,1542.2,0.15432283]
[1673857074050,7.99402,1542.8,1542.2,0.15432283]
[1673857074051,6.48202,1542.8,1542.2,0.15432283]
[1673857074279,9.75480678,1542.8,1542.2,0.15432283]
[1673857074464,6.48071,1543.1,1542.2,17.70783789]
[1673857074672,6.48071,1543.1,1542.2,18.35417707]
[1673857075097,0.0055276,1543.2,1542.3,6.91912596]
[1673857075354,0.0055276,1543.2,1542.5,15.46536]
[1673857075525,3.27278678,1543.1,1542.5,12.96536]
[1673857075735,0.0055276,1543.2,1542.6,1.296536]
[1673857075946,0.0055276,1543.2,1542.7,12.96374]
[1673857076184,0.0055276,1543.2,1542.8,3.0]
[1673857076368,0.0055276,1543.2,1542.8,7.12793918]
[1673857076776,0.0055276,1543.2,1542.9,0.64633918]
[1673857076982,0.0055276,1543.2,1542.9,5.0073051]
[1673857077227,0.0055276,1543.2,1542.9,4.36096592]
[1673857077479,9.75324678,1543.1,1542.5,0.70333609]
[1673857077650,3.27278678,1543.0,1542.3,6.48368]
[1673857077999,3.27278678,1542.9,1542.3,6.48368]
[1673857078295,3.27278678,1542.9,1542.4,3.148368]
[1673857078525,3.27278678,1542.9,1542.4,13.614808]
[1673857079086,3.27278678,1542.9,1542.4,7.131408]
[1673857079344,9.75415678,1542.9,1542.4,0.648368]
[1673857079976,3.27278678,1542.8,1542.4,7.131748]
[1673857080301,6.48137,1542.9,1542.5,0.7131748]
[1673857080449,6.48076,1543.1,1542.5,15.96585]
[1673857080659,6.4859376,1543.2,1542.5,15.96585]
[1673857080660,0.0055276,1543.2,1542.6,3.27278678]
[1673857080904,0.0055276,1543.2,1542.7,25.71818678]
[1673857081129,0.0055276,1543.2,1542.8,8.84460546]
[1673857081346,0.0055276,1543.2,1542.9,25.21641678]
[1673857081535,0.0055276,1543.2,1543.0,3.0]
[1673857081752,0.0055276,1543.2,1542.6,6.48237]
[1673857082235,0.0055276,1543.2,1542.4,0.648368]
[1673857082452,9.75327678,1543.1,1542.5,2.5]
[1673857082707,3.27278678,1543.0,1542.6,0.25]
[1673857082885,3.27278678,1543.1,1542.6,3.25]
[1673857083711,0.0055276,1543.2,1542.6,9.73245]
[1673857083926,3.27831438,1543.2,1542.6,9.73245]
[1673857084338,3.27278678,1543.1,1542.4,3.648368]
[1673857084548,3.27278678,1543.1,1542.2,0.41370383]
[1673857084549,14.11639908,1543.0,1542.2,0.41370383]
[1673857084766,7.63523908,1542.9,1542.2,0.41370383]
[1673857085040,9.75481678,1542.8,1542.2,0.41370383]
[1673857085253,3.27278678,1542.7,1542.2,0.41370383]
[1673857085478,3.27278678,1542.6,1542.2,0.41370383]
[1673857085806,16.23890678,1542.5,1542.2,0.41370383]
[1673857086015,3.27278678,1542.4,1542.2,0.41370383]
[1673857086232,18.74042678,1542.3,1542.2,0.15432283]
[1673857086543,18.74042678,1542.3,1541.9,0.15432283]
[1673857086544,19.45398,1542.1,1541.9,0.15432283]
[1673857086699,9.75786678,1542.0,1541.9,0.15432283]
[1673857086907,12.96932,1542.1,1541.9,0.15432283]
[1673857086908,6.48466,1542.1,1541.9,0.15432283]
[1673857087153,3.27278678,1542.1,1541.9,0.15432283]
[1673857087597,6.48382,1542.3,1541.9,0.15432283]
[1673857087753,16.24080678,1542.3,1541.9,0.15432283]
[1673857087964,9.75660678,1542.3,1541.9,0.15432283]
[1673857088286,3.27278678,1542.3,1541.9,0.15432283]
[1673857088696,3.27278678,1542.2,1541.9,0.15432283]
[1673857088909,3.27278678,1542.1,1541.9,0.15432283]
[1673857089700,3.27278678,1542.0,1541.9,0.15432283]
[1673857090028,6.48508,1542.0,1541.9,0.15432283]
[1673857090326,6.48469,1542.1,1541.9,0.15432283]
[1673857090492,9.75747678,1542.1,1541.9,0.15432283]
[1673857090907,9.57454,1542.4,1541.9,0.15432283]
[1673857090908,6.48354,1542.4,1541.9,0.15432283]
[1673857091158,9.75632678,1542.4,1541.9,3.83494629]
[1673857091349,3.27278678,1542.3,1541.9,0.15432283]
[1673857091560,22.72571678,1542.2,1541.9,0.15432283]
[1673857091754,3.27278678,1542.1,1541.9,0.15432283]
[1673857091961,16.24294678,1542.0,1541.9,0.15432283]
[1673857092954,27.09047908,1542.0,1541.9,0.15432283]
[1673857093132,31.09347908,1542.0,1541.9,0.00032283]
[1673857093328,2.5,1541.9,1541.7,0.1528784]
[1673857093545,22.73054678,1541.8,1541.7,0.1528784]
[1673857093796,25.68984669,1541.8,1541.7,0.1528784]
[1673857094529,25.68984669,1541.8,1541.7,7.84e-05]
[1673857094844,19.46028,1541.6,1541.4,0.15756592]
[1673857095084,16.24714678,1541.5,1541.4,0.15756592]
[1673857096094,23.10959908,1541.5,1541.4,0.15756592]
[1673857096330,21.70678269,1541.5,1541.4,0.15756592]
[1673857096502,2.5,1541.4,1541.1,0.1528784]
[1673857096851,22.73684678,1541.3,1541.1,0.1528784]
[1673857097000,3.27278678,1541.2,1541.1,0.1528784]
[1673857097455,16.24968678,1541.2,1541.1,0.1528784]
[1673857097783,6.48788,1541.4,1541.1,1.1768784]
[1673857098002,3.27278678,1541.4,1541.1,1.1768784]
[1673857098190,3.27278678,1541.3,1541.1,1.1768784]
[1673857098531,3.27278678,1541.3,1541.1,0.1528784]
[1673857100208,6.48718,1541.5,1541.1,0.1528784]
[1673857100533,3.27278678,1541.4,1541.1,0.1528784]
[1673857100680,6.48723,1541.5,1541.1,0.1528784]
[1673857100898,9.76001678,1541.5,1541.1,0.1528784]
[1673857101144,6.48667,1541.7,1541.1,0.1528784]
[1673857101378,3.27278678,1541.6,1541.1,15.09006942]
[1673857101675,8.06645,1542.0,1541.3,12.97561]
[1673857101676,6.48545,1542.0,1541.3,12.97561]
[1673857101840,3.27278678,1542.0,1541.4,9.4873]
[1673857102049,3.27278678,1542.0,1541.4,10.13363918]
[1673857102260,3.27278678,1542.0,1541.4,12.4445641]
[1673857102727,3.27278678,1542.0,1541.4,18.9321641]
[1673857103046,6.4846,1542.2,1541.5,0.64633918]
[1673857103257,3.27278678,1542.1,1541.6,6.48662]
[1673857103412,3.27278678,1542.1,1541.6,7.84859492]
[1673857103617,6.4846,1542.2,1541.6,14.33535492]
[1673857103937,1.69367156,1543.9,1541.7,3.27278678]
[1673857103938,8.07183,1542.6,1541.7,3.27278678]
[1673857104164,3.27278678,1542.5,1541.9,19.45589]
[1673857104421,8.07381,1542.8,1542.0,5.21837578]
[1673857104607,11.34659678,1542.8,1542.2,6.48419]
[1673857104944,11.34659678,1542.8,1541.9,8.08121]
[1673857104945,24.31619678,1542.7,1541.9,6.48517]
[1673857105125,11.35125678,1542.7,1541.9,12.97034]
[1673857105336,4.86878678,1542.7,1541.9,12.97034]
[1673857105672,3.27278678,1542.6,1542.0,10.781804]
[1673857105842,6.48174,1542.8,1542.0,17.266884]
[1673857106064,9.75452678,1542.8,1542.2,6.48408]
[1673857106252,3.27278678,1542.7,1542.1,6.48445]
[1673857106461,9.75503678,1542.7,1542.2,3.0]
[1673857107245,6.48174,1542.8,1542.2,3.948445]
[1673857107418,6.4814,1542.9,1542.2,16.916885]
[1673857107622,9.75418678,1542.9,1542.2,16.916885]
[1673857107827,9.75418678,1542.9,1542.4,6.4834]
[1673857108033,6.48082,1543.1,1542.4,12.9668]
[1673857108299,3.27278678,1543.0,1542.5,3.0]
[1673857108451,9.75397678,1543.0,1542.5,3.0]
[1673857108660,9.75397678,1543.0,1542.3,8.98353]
[1673857108661,3.27278678,1542.9,1542.3,8.98353]
[1673857108871,16.23630678,1542.8,1542.2,6.48394]
[1673857109139,9.75506678,1542.7,1542.2,6.48394]
[1673857109761,1.6,1543.0,1542.2,13.61451918]
[1673857109762,6.48142,1542.9,1542.2,13.61451918]
[1673857110089,9.75460678,1542.8,1542.2,13.61451918]
[1673857110394,9.75460678,1542.8,1542.3,3.0]
[1673857110395,16.23642678,1542.8,1542.3,3.0]
[1673857110570,3.27278678,1542.7,1542.2,3.0]
[1673857110785,6.48272,1542.6,1542.2,3.0]
[1673857110988,12.96544,1542.6,1542.1,6.48452]
[1673857111203,3.27278678,1542.5,1541.8,21.84441]
[1673857111435,6.48386,1542.3,1541.8,15.3588]
[1673857111763,9.75664678,1542.3,1541.8,8.830004]
[1673857112125,3.27278678,1542.2,1541.7,6.48624]
[1673857112476,9.75751678,1542.1,1541.5,17.54983]
[1673857112811,14.56932,1542.3,1541.6,2.5]
[1673857113001,11.35794678,1542.3,1541.7,6.48627]
[1673857113334,6.48327,1542.5,1541.9,6.48549]
[1673857113558,12.9657,1542.6,1541.9,12.97099]
[1673857113701,3.27278678,1542.5,1541.9,6.48549]
[1673857114071,3.27278678,1542.5,1541.8,7.134467]
[1673857114072,9.75618678,1542.4,1541.8,7.134467]
[1673857114243,3.27278678,1542.3,1541.9,3.0]
[1673857114600,9.75710678,1542.2,1541.7,3.0]
[1673857114785,3.27278678,1542.1,1541.7,3.0]
[1673857114966,6.48412,1542.3,1541.7,9.48634]
[1673857115226,9.75690678,1542.3,1541.7,9.48634]
[1673857115437,9.75690678,1542.3,1541.7,11.333619]
[1673857115664,3.27278678,1541.9,1541.5,0.64633918]
[1673857115891,3.27278678,1541.9,1541.5,0.705281]
[1673857115892,9.75887678,1541.8,1541.5,0.705281]
[1673857116101,1.633,1542.1,1541.5,12.97418]
[1673857116272,3.27278678,1542.0,1541.5,12.97418]
[1673857116500,3.27278678,1542.0,1541.5,2.594866]
[1673857116724,9.75789678,1542.0,1541.3,6.48785]
[1673857116933,3.27278678,1541.9,1541.1,9.1413584]
[1673857117148,6.4865,1541.7,1541.1,0.1528784]
[1673857117476,9.75928678,1541.7,1541.1,0.1528784]
[1673857117690,9.75928678,1541.7,1541.1,6.6416884]
[1673857118004,9.75928678,1541.7,1541.1,8.11805924]
[1673857118394,9.75928678,1541.7,1541.2,3.0]
[1673857118795,3.27278678,1541.6,1541.1,0.1528784]
[1673857119055,9.76032678,1541.5,1541.1,0.1528784]
[1673857119247,3.27278678,1541.4,1541.1,0.1528784]
[1673857120601,12.97233,1541.8,1541.1,13.1304484]
[1673857120952,9.75893678,1541.8,1541.2,3.81304484]
[1673857121109,9.75893678,1541.8,1541.3,3.0]
[1673857121314,9.75893678,1541.8,1541.3,10.13434918]
[1673857121576,3.27278678,1541.8,1541.4,0.64633918]
[1673857122085,3.27278678,1541.7,1541.4,0.64633918]
[1673857122279,6.48522,1542.0,1541.4,7.4985731]
[1673857122470,6.48441,1542.2,1541.5,3.0]
[1673857122684,3.27278678,1542.1,1541.7,2.5]
[1673857122911,6.48441,1542.2,1541.7,3.0]
[1673857123139,9.75719678,1542.2,1541.7,3.64633918]
[1673857123347,3.27278678,1542.2,1541.7,11.7945861]
[1673857123580,6.48409,1542.3,1541.7,18.2809261]
[1673857123767,9.75687678,1542.3,1541.7,18.2809261]
[1673857124800,16.24096678,1542.3,1541.7,18.2809261]
[1673857125544,3.27278678,1542.2,1541.7,0.64633918]
[1673857125885,3.27278678,1542.2,1541.3,6.48764]
[1673857125886,22.72739678,1542.1,1541.3,6.48764]
[1673857126101,6.48596,1541.8,1541.3,6.48764]
[1673857126311,6.48596,1541.8,1541.3,16.51581248]
[1673857126569,12.96883,1542.2,1541.4,3.27278678]
[1673857126744,6.4848,1542.1,1541.5,2.5]
[1673857126917,6.48578,1541.9,1541.3,6.48764]
[1673857127123,3.27278678,1541.8,1541.2,3.0]
[1673857127389,3.27278678,1541.7,1541.3,3.0]
[1673857127705,3.27278678,1541.7,1541.3,5.5]
[1673857127870,3.27278678,1541.6,1541.3,3.0]
[1673857128081,3.26364823,1541.5,1541.1,3.1528784]
[1673857128444,3.26364823,1541.5,1541.1,4.11708324]
[1673857128601,12.97272,1541.7,1541.2,2.5]
[1673857128807,12.97174,1541.9,1541.2,11.9883]
[1673857129017,9.75879678,1541.8,1541.2,11.9883]
[1673857129494,16.24480678,1541.8,1541.2,11.9883]
[1673857129679,16.24480678,1541.8,1541.2,11.44769332]
[1673857130014,9.75917678,1541.7,1541.2,11.44769332]
[1673857130398,3.27278678,1541.6,1541.2,3.0]
[1673857130614,9.76005678,1541.5,1541.1,0.1528784]
[1673857131017,6.48727,1541.5,1541.1,0.1528784]
[1673857131229,16.24717678,1541.5,1541.1,0.1528784]
[1673857131445,9.75996678,1541.5,1541.1,0.1528784]
[1673857131651,8.28201,1541.8,1541.1,13.1305684]
[1673857131652,6.4867,1541.7,1541.1,13.1305684]
[1673857131977,8.25342,1542.0,1541.2,1.54305684]
[1673857132307,1.757,1542.2,1541.4,19.46232]
[1673857132308,8.24151,1542.2,1541.4,19.46232]
[1673857132497,8.24151,1542.2,1541.6,6.48645]
[1673857132498,3.27278678,1542.1,1541.6,6.48645]
[1673857132706,8.24151,1542.2,1541.6,6.48645]
[1673857132707,3.27278678,1542.0,1541.7,3.0]
[1673857133133,3.27278678,1542.0,1541.6,3.0]
[1673857133350,3.27278678,1542.0,1541.6,4.01331292]
[1673857133659,6.48394,1542.3,1541.7,2.5]
[1673857133893,6.48394,1542.3,1541.8,6.4858]
[1673857133894,9.75672678,1542.3,1541.8,6.4858]
[1673857134217,9.75672678,1542.3,1541.9,0.64858]
[1673857134388,9.75672678,1542.3,1541.8,6.4858]
[1673857134389,22.72700678,1542.1,1541.8,0.64633918]
[1673857134605,3.27278678,1542.0,1541.2,10.30149684]
[1673857134827,6.48596,1541.8,1541.2,10.30120684]
[1673857135167,6.48575,1541.9,1541.3,14.00616068]
[1673857135480,6.4854,1542.0,1541.4,2.5]
[1673857135637,6.48457,1542.2,1541.5,12.97378]
[1673857135852,6.48372,1542.4,1541.6,5.50578678]
[1673857136059,6.48372,1542.4,1541.8,19.45725]
[1673857136060,3.27278678,1542.4,1541.8,19.45725]
[1673857136413,3.27278678,1542.4,1541.9,11.430925]
[1673857136735,3.27278678,1542.3,1541.7,9.4863]
[1673857136947,3.27278678,1542.2,1541.8,3.0]
[1673857137109,12.96689,1542.4,1541.8,3.0]
[1673857137110,3.27278678,1542.1,1541.8,3.0]
[1673857137325,3.27278678,1542.1,1541.6,8.48939]
[1673857137571,8.35279,1542.4,1541.7,5.5]
[1673857137799,3.27278678,1542.3,1541.9,6.48546]
[1673857138021,3.27278678,1542.3,1541.9,8.98546]
[1673857138344,3.27278678,1542.3,1541.9,6.48546]
[1673857139248,3.27278678,1542.2,1541.8,6.71576]
[1673857139606,3.27278678,1542.1,1541.7,9.4861]
[1673857139790,12.96856,1542.2,1541.7,15.97244]
[1673857140003,6.48382,1542.3,1541.7,22.45878]
[1673857140216,9.75660678,1542.3,1541.7,22.45878]
[1673857140425,9.75660678,1542.3,1541.8,2.245878]
[1673857140632,9.75660678,1542.3,1541.9,6.48532]
[1673857141160,3.27278678,1542.3,1541.9,12.97082]
[1673857141331,12.96645,1542.5,1541.9,19.45632]
[1673857141552,3.27278678,1542.4,1542.0,4.945632]
[1673857141869,3.27278678,1542.4,1542.1,6.48457]
[1673857142124,14.82445,1542.6,1542.1,6.48457]
[1673857142125,14.82441,1542.6,1542.1,6.48457]
[1673857142282,18.09719678,1542.6,1542.1,6.48457]
[1673857142648,3.27278678,1542.6,1542.1,21.2453932]
[1673857143484,12.96715,1542.4,1542.0,3.0]
[1673857143696,3.27278678,1542.3,1541.9,12.97061]
[1673857143912,6.48315,1542.5,1541.9,19.45611]
[1673857144126,0.02371473,1542.3,1541.9,19.45611]
[1673857144284,0.02371473,1542.3,1542.0,0.23]
[1673857144649,0.02371473,1542.3,1542.0,6.71478]
[1673857144807,3.29650151,1542.3,1541.9,6.48529]
[1673857145015,3.27278678,1542.2,1541.8,3.0]
[1673857145222,9.78124151,1542.1,1541.7,3.0]
[1673857146222,3.29650151,1542.1,1541.7,9.48628]
[1673857146390,3.29650151,1542.1,1541.7,11.9005606]
[1673857146752,0.02371473,1542.1,1541.7,18.3869006]
[1673857146935,0.02371473,1542.1,1541.8,0.23]
[1673857147120,0.02371473,1542.1,1541.9,19.4565]
[1673857147325,0.02371473,1542.1,1542.0,3.23]
[1673857147569,0.02371473,1542.1,1542.0,16.20016]
[1673857147779,0.02371473,1542.1,1542.0,3.23]
[1673857148121,0.02371473,1542.1,1542.0,3.0]
[1673857148275,9.78116151,1542.1,1541.9,3.0]
[1673857148484,3.27278678,1542.0,1541.9,3.0]
[1673857148730,0.02371473,1541.9,1541.7,3.0]
[1673857149119,0.02371473,1541.9,1541.7,17.569882]
[1673857149365,0.02371473,1541.9,1541.8,2.5]
[1673857149524,0.02371473,1541.9,1541.8,15.47184]
[1673857149741,0.02371473,1541.9,1541.8,15.97184]
[1673857150426,0.02371473,1541.9,1541.8,16.20184]
[1673857150580,0.02371473,1541.9,1541.8,18.6303782]
[1673857151001,0.02371473,1541.9,1541.8,3.0]
[1673857151438,1.04371473,1541.9,1541.7,6.4862]
[1673857151858,4.31650151,1541.9,1541.5,6.48691]
[1673857152068,10.80204151,1541.9,1541.5,6.48691]
[1673857152308,4.31650151,1541.9,1541.5,6.48691]
[1673857152523,4.31364451,1541.9,1541.5,12.97409]
[1673857152871,0.02085773,1541.9,1541.5,21.407415]
[1673857153259,0.02085773,1541.9,1541.7,19.45902]
[1673857153455,0.02085773,1541.9,1541.8,5.5]
[1673857153456,0.00085773,1541.9,1541.8,5.5]
[1673857153629,0.00085773,1541.9,1541.8,21.97462678]
[1673857153839,0.00085773,1541.9,1541.8,24.62396596]
[1673857154046,0.00085773,1541.9,1541.8,28.38363056]
[1673857154395,0.00085773,1541.9,1541.8,25.88363056]
[1673857154577,0.00085773,1541.9,1541.8,20.60784378]
[1673857155245,0.00085773,1541.9,1541.8,16.20184]
[1673857155452,1.02085773,1541.9,1541.8,3.0]
[1673857155669,0.00085773,1541.9,1541.7,3.0]
[1673857156253,0.00085773,1541.9,1541.7,7.097296]
[1673857156499,0.00085773,1541.9,1541.7,17.569826]
[1673857156935,0.00085773,1541.9,1541.8,15.24584]
[1673857157105,0.00085773,1541.9,1541.8,18.24584]
[1673857157312,0.00085773,1541.9,1541.8,20.74584]
[1673857157564,0.00085773,1541.9,1541.8,23.6287726]
[1673857157778,0.00085773,1541.9,1541.8,26.90155938]
[1673857157995,0.00085773,1541.9,1541.8,27.54789856]
[1673857158712,0.00085773,1541.9,1541.8,24.27511178]
[1673857159092,0.00085773,1541.9,1541.8,27.54789856]
[1673857159348,4.35500047,1542.6,1542.1,19.45347]
[1673857159563,10.89016,1542.7,1542.1,19.45347]
[1673857159723,17.37254,1542.7,1542.2,0.23]
[1673857160434,23.85504,1542.7,1542.2,0.23]
[1673857161174,23.85504,1542.7,1542.2,6.7142]
[1673857161341,6.48298,1542.5,1542.1,12.96898]
[1673857161557,3.27278678,1542.4,1541.8,9.48561]
[1673857161779,9.56167678,1542.3,1541.7,8.083316]
[1673857161992,3.07778678,1542.2,1541.6,12.97292]
[1673857162199,3.07778678,1542.1,1541.7,8.98625]
[1673857162414,2.88278678,1542.1,1541.7,8.682167]
[1673857162664,6.28856,1542.4,1541.7,15.168507]
[1673857162847,3.07778678,1542.3,1541.7,15.168507]
[1673857163030,2.88278678,1542.3,1541.7,15.168507]
[1673857163246,2.68778678,1542.3,1541.8,2.5]
[1673857163491,6.28821,1542.5,1542.0,6.48488]
[1673857163675,9.36599678,1542.5,1542.0,6.48488]
[1673857164091,3.27278678,1542.5,1542.0,12.96996]
[1673857165131,3.27278678,1542.5,1542.0,19.45504]
[1673857165343,21.1583,1542.9,1542.1,2.73]
[1673857165695,3.27278678,1542.8,1542.3,12.9673]
[1673857165876,3.27278678,1542.7,1542.3,12.9673]
[1673857166210,3.27278678,1542.7,1542.2,9.75686]
[1673857166211,9.75498678,1542.7,1542.2,9.75686]
[1673857166424,3.27278678,1542.6,1542.1,13.61494918]
[1673857166647,6.48214,1542.7,1542.2,12.96819]
[1673857166963,9.75492678,1542.7,1542.2,19.45243]
[1673857167341,8.5602194,1543.0,1542.2,22.72521678]
[1673857167544,0.0601194,1543.0,1542.3,6.50278678]
[1673857167754,0.0601194,1543.0,1542.5,19.44882]
[1673857167961,0.0601194,1543.0,1542.6,0.23]
[1673857168176,0.0601194,1543.0,1542.6,13.19475]
[1673857168653,3.27278678,1542.9,1542.4,7.13354868]
[1673857168819,3.27278678,1542.8,1542.5,3.0]
[1673857169803,3.27278678,1542.7,1542.2,6.48392]
[1673857169996,3.27278678,1542.6,1542.3,3.0]
[1673857170328,3.27278678,1542.5,1542.2,3.0]
[1673857170544,3.27278678,1542.5,1542.0,6.48481]
[1673857170849,3.27278678,1542.5,1542.0,12.96989]
[1673857171063,11.37964146,1542.5,1541.9,6.73515]
[1673857171221,17.86265146,1542.5,1541.9,13.22036]
[1673857171432,3.27278678,1542.4,1541.9,12.97036]
[1673857171643,3.27278678,1542.3,1541.8,6.48565]
[1673857171903,9.75681678,1542.3,1541.8,6.48565]
[1673857172066,16.24084678,1542.3,1541.8,6.48565]
[1673857172273,6.48329,1542.5,1541.8,15.1369337]
[1673857172523,9.75607678,1542.5,1541.8,15.1369337]
[1673857172692,3.27278678,1542.5,1541.8,15.1369337]
[1673857173323,3.27278678,1542.5,1541.9,0.23]
[1673857173798,3.27278678,1542.5,1542.0,12.96964]
[1673857173967,3.27278678,1542.5,1542.0,15.238121]
[1673857174632,6.48219,1542.7,1542.1,3.0]
[1673857174794,14.87606,1542.8,1542.2,13.19809]
[1673857174795,6.48203,1542.8,1542.2,13.19809]
[1673857175010,26.9721194,1543.0,1542.2,22.95511678]
[1673857175011,33.4530494,1543.0,1542.2,22.95511678]
[1673857175214,9.75419678,1542.9,1542.4,12.96642]
[1673857175511,6.48141,1542.9,1542.4,14.211426]
[1673857175697,25.0601194,1543.0,1542.5,3.23]
[1673857175847,25.0601194,1543.0,1542.6,6.4824]
[1673857176799,3.27278678,1542.9,1542.4,15.211346]
[1673857177947,2.5,1542.8,1542.4,15.211346]
[1673857178152,12.25474678,1542.8,1542.4,6.48312]
[1673857178363,9.75474678,1542.8,1542.3,12.96728]
[1673857178631,9.75474678,1542.8,1542.3,6.48364]
[1673857178632,16.23670678,1542.8,1542.3,6.48364]
[1673857179279,25.0,1542.5,1542.3,6.48364]
[1673857179791,25.0,1542.5,1542.4,2.274]
[1673857180103,25.0,1542.5,1542.3,6.48364]
[1673857180732,25.0,1542.5,1542.3,7.780406]
[1673857180922,25.0,1542.5,1542.3,20.748046]
[1673857181102,25.0,1542.5,1542.3,14.264226]
[1673857181310,25.0,1542.5,1542.3,7.780406]
[1673857182110,25.0,1542.5,1542.3,14.264226]
[1673857182259,25.0,1542.5,1542.4,1.4264226]
[1673857182464,25.0,1542.5,1542.4,14.3932226]
[1673857182723,25.0,1542.5,1542.4,24.1066226]
[1673857184725,25.0,1542.5,1542.4,28.02574856]
[1673857185159,25.0,1542.5,1542.4,27.37940938]
[1673857185308,25.0,1542.5,1542.4,28.02574856]
[1673857185730,0.0601194,1543.0,1542.5,22.0]
[1673857185932,0.0601194,1543.0,1542.6,10.72178678]
[1673857186148,0.0601194,1543.0,1542.7,31.70098678]
[1673857186356,0.0601194,1543.0,1542.9,19.4439]
[1673857186625,0.0601194,1543.0,1542.9,22.6739]
[1673857186814,0.0601194,1543.0,1542.9,23.32023918]
[1673857186985,0.0601194,1543.0,1542.9,26.18064178]
[1673857187520,0.0601194,1543.0,1542.9,25.5343026]
[1673857187878,1.0801194,1543.0,1542.8,6.48157]
[1673857188248,0.0601194,1543.0,1542.9,8.7553]
[1673857188453,0.0601194,1543.0,1542.9,15.2366]
[1673857189246,0.0601194,1543.0,1542.9,21.7179]
[1673857189561,0.0601194,1543.0,1542.9,24.7179]
[1673857189711,0.0601194,1543.0,1542.9,28.16512568]
[1673857190574,0.0601194,1543.0,1542.9,28.16273618]
[1673857190998,0.0601194,1543.0,1542.9,27.14273618]
[1673857192468,0.0601194,1543.0,1542.9,19.63743618]
[1673857192692,0.0601194,1543.0,1542.9,23.11873618]
[1673857194253,0.0601194,1543.0,1542.9,26.76507536]
[1673857194459,0.0601194,1543.0,1542.9,30.03786214]
[1673857194693,0.0001194,1543.0,1542.9,30.03786214]
[1673857194905,0.0001194,1543.0,1542.9,30.84070714]
[1673857195115,0.0001194,1543.0,1542.9,26.92158118]
[1673857195330,0.0001194,1543.0,1542.9,26.53746486]
[1673857196582,0.0001194,1543.0,1542.9,29.81025164]
[1673857196986,0.0001194,1543.0,1542.9,30.04025164]
[1673857197199,0.0001194,1543.0,1542.9,26.76746486]
[1673857198134,0.0001194,1543.0,1542.9,30.04025164]
[1673857198357,0.06373671,1543.3,1543.0,2.5]
[1673857198583,0.06373671,1543.3,1543.2,2.019]
[1673857198797,0.06373671,1543.3,1543.2,17.97908]
[1673857199007,0.06373671,1543.3,1543.2,18.85541918]
[1673857200595,0.06373671,1543.3,1543.2,22.12820596]
[1673857201403,0.06373671,1543.3,1543.2,16.19008]
[1673857201615,0.06373671,1543.3,1543.2,19.08945435]